fUSD/lending_fUSD_20260527
["ID","MTS","AMOUNT","RATE_DAILY","PERIOD"]
[423102681,1779850251000,-500.0,0.00041917,120]
[423102687,1779850251000,-321.1357,0.00041917,120]
[423102688,1779850251000,-152.52738574,0.00041917,120]
[423102698,1779850251000,-185.37454174,0.00041917,120]
[423102685,1779850251000,-500.0,0.00041917,120]
[423102690,1779850251000,-212.4442676,0.00041917,120]
[423102689,1779850251000,-341.23380731,0.00041917,120]
[423102691,1779850251000,-167.90698754,0.00041917,120]
[423102683,1779850251000,-500.0,0.00041917,120]
[423102682,1779850251000,-500.0,0.00041917,120]
[423102686,1779850251000,-500.0,0.00041917,120]
[423102692,1779850251000,-500.0,0.00041917,120]
[423102694,1779850251000,-153.39734073,0.00041917,120]
[423102696,1779850251000,-205.49097455,0.00041917,120]
[423102693,1779850251000,-152.48895561,0.00041917,120]
[423102695,1779850251000,-160.88681087,0.00041917,120]
[423102697,1779850251000,-302.54328672,0.00041917,120]
[423102684,1779850251000,-500.0,0.00041917,120]
[423102725,1779850251000,-500.0,0.00041917,120]
[423102678,1779850251000,-500.0,0.00041917,120]
[423102723,1779850251000,-229.44022363,0.00041917,120]
[423102763,1779850251000,-569.69641719,0.00041917,120]
[423102760,1779850251000,-158.86654462,0.00041917,120]
[423102765,1779850251000,-159.22345606,0.00041917,120]
[423102771,1779850251000,-161.79126005,0.00041917,120]
[423102762,1779850251000,-155.83201915,0.00041917,120]
[423102768,1779850251000,-500.0,0.00041917,120]
[423102766,1779850251000,-322.78337387,0.00041917,120]
[423102764,1779850251000,-379.24956751,0.00041917,120]
[423102769,1779850251000,-500.0,0.00041917,120]
[423102767,1779850251000,-500.0,0.00041917,120]
[423102770,1779850251000,-231.33449234,0.00041917,120]
[423102772,1779850251000,-195.87620111,0.00041917,120]
[423102761,1779850251000,-173.19013081,0.00041917,120]
[423102781,1779850251000,-702.8668,0.00041917,120]
[423102782,1779850251000,-191.70606776,0.00041917,120]
[423102774,1779850251000,-196.09971637,0.00041917,120]
[423102775,1779850251000,-387.05132228,0.00041917,120]
[423102777,1779850251000,-192.32338818,0.00041917,120]
[423102779,1779850251000,-200.94992791,0.00041917,120]
[423102776,1779850251000,-188.81157202,0.00041917,120]
[423102778,1779850251000,-322.69654713,0.00041917,120]
[423102780,1779850251000,-210.32864031,0.00041917,120]
[423102784,1779850251000,-158.03906488,0.00041917,120]
[423102786,1779850251000,-154.11709785,0.00041917,120]
[423102785,1779850251000,-214.55382543,0.00041917,120]
[423102733,1779850251000,-153.59959978,0.00041917,120]
[423102783,1779850251000,-182.93660619,0.00041917,120]
[423102755,1779850251000,-234.4780465,0.00041917,11]
[423102773,1779850251000,-155.81385289,0.00041917,120]
[423102757,1779850251000,-206.03112003,0.00041917,120]
[423102754,1779850251000,-218.44659085,0.00041917,120]
[423102727,1779850251000,-431.69658358,0.00041917,120]
[423102724,1779850251000,-500.0,0.00041917,120]
[423102734,1779850251000,-294.78992471,0.00041917,120]
[423102735,1779850251000,-249.48059693,0.00041917,120]
[423102745,1779850251000,-158.74244294,0.00041917,120]
[423102736,1779850251000,-500.0,0.00041917,120]
[423102746,1779850251000,-447.7113,0.00041917,120]
[423102738,1779850251000,-305.52931898,0.00041917,120]
[423102737,1779850251000,-365.18430105,0.00041917,120]
[423102739,1779850251000,-397.25624409,0.00041917,120]
[423102741,1779850251000,-189.90847719,0.00041917,120]
[423102744,1779850251000,-230.06032982,0.00041917,120]
[423102726,1779850251000,-494.1396586,0.00041917,120]
[423102753,1779850251000,-204.70664254,0.00041917,120]
[423102752,1779850251000,-279.02475833,0.00041917,120]
[423102750,1779850251000,-150.65889765,0.00041917,120]
[423102751,1779850251000,-504.89805852,0.00041917,120]
[423102742,1779850251000,-500.0,0.00041917,120]
[423102758,1779850251000,-152.78660991,0.00041917,120]
[423102747,1779850251000,-172.07107456,0.00041917,120]
[423102759,1779850251000,-228.10041073,0.00041917,120]
[423102749,1779850251000,-169.38336228,0.00041917,120]
[423102748,1779850251000,-198.1350502,0.00041917,120]
[423102740,1779850251000,-224.33215884,0.00041917,120]
[423102743,1779850251000,-500.0,0.00041917,120]
[423102756,1779850251000,-500.0,0.00041917,120]
[423102827,1779850252000,-174.53969831,0.00041917,120]
[423102824,1779850252000,-193.68585274,0.00041917,120]
[423102826,1779850252000,-199.13803085,0.00041917,120]
[423102821,1779850252000,-185.16128301,0.00041917,120]
[423102838,1779850252000,-163.65808976,0.00041917,120]
[423102820,1779850252000,-163.91378169,0.00041917,120]
[423102819,1779850252000,-167.46192861,0.00041917,120]
[423102817,1779850252000,-171.76157032,0.00041917,120]
[423102823,1779850252000,-178.2550198,0.00041917,120]
[423102811,1779850252000,-212.3254449,0.00041917,120]
[423102822,1779850252000,-166.84060929,0.00041917,120]
[423102825,1779850252000,-160.66403734,0.00041917,120]
[423102835,1779850252000,-165.70090404,0.00041917,120]
[423102840,1779850252000,-162.50863873,0.00041917,120]
[423102839,1779850252000,-156.24819327,0.00041917,120]
[423102833,1779850252000,-170.49824222,0.00041917,120]
[423102832,1779850252000,-306.74381915,0.00041917,120]
[423102830,1779850252000,-205.74521385,0.00041917,120]
[423102837,1779850252000,-178.44511743,0.00041917,120]
[423102828,1779850252000,-210.95438876,0.00041917,120]
[423102834,1779850252000,-217.50017936,0.00041917,120]
[423102836,1779850252000,-173.40056003,0.00041917,120]
[423102818,1779850252000,-168.58023114,0.00041917,30]
[423102829,1779850252000,-155.35675772,0.00041917,120]
[423102816,1779850252000,-194.81785703,0.00041917,120]
[423102800,1779850252000,-155.54004842,0.00041917,120]
[423102815,1779850252000,-215.40725221,0.00041917,120]
[423102788,1779850252000,-179.76170571,0.00041917,120]
[423102787,1779850252000,-173.92733698,0.00041917,120]
[423102794,1779850252000,-173.5207247,0.00041917,120]
[423102789,1779850252000,-158.16202739,0.00041917,120]
[423102790,1779850252000,-500.0,0.00041917,120]
[423102792,1779850252000,-173.39273291,0.00041917,120]
[423102791,1779850252000,-380.81853368,0.00041917,120]
[423102795,1779850252000,-209.36436821,0.00041917,120]
[423102793,1779850252000,-261.90704351,0.00041917,120]
[423102796,1779850252000,-220.91813894,0.00041917,120]
[423102797,1779850252000,-157.79722224,0.00041917,120]
[423102799,1779850252000,-180.09215474,0.00041917,120]
[423102813,1779850252000,-168.87478425,0.00041917,120]
[423102798,1779850252000,-164.40474486,0.00041917,120]
[423102801,1779850252000,-158.69862206,0.00041917,120]
[423102842,1779850252000,-195.98848303,0.00041917,120]
[423102802,1779850252000,-185.30601948,0.00041917,120]
[423102803,1779850252000,-178.93083758,0.00041917,120]
[423102806,1779850252000,-218.30935569,0.00041917,120]
[423102807,1779850252000,-179.70165973,0.00041917,120]
[423102805,1779850252000,-159.96950757,0.00041917,120]
[423102804,1779850252000,-285.66691838,0.00041917,120]
[423102808,1779850252000,-230.76021446,0.00041917,120]
[423102810,1779850252000,-376.80326541,0.00041917,120]
[423102812,1779850252000,-169.17553768,0.00041917,120]
[423102814,1779850252000,-175.39607549,0.00041917,120]
[423102809,1779850252000,-167.29978855,0.00041917,120]
[423102850,1779850252000,-172.67834306,0.00041917,120]
[423102831,1779850252000,-170.71699847,0.00041917,120]
[423102851,1779850252000,-171.81659623,0.00041917,120]
[423102880,1779850252000,-838.05,0.00041917,120]
[423102879,1779850252000,-838.05,0.00041917,120]
[423102872,1779850252000,-500.0,0.00041917,120]
[423102877,1779850252000,-838.05,0.00041917,120]
[423102875,1779850252000,-500.0,0.00041917,120]
[423102874,1779850252000,-500.0,0.00041917,120]
[423102882,1779850252000,-838.05,0.00041917,120]
[423102881,1779850252000,-838.05,0.00041917,120]
[423102884,1779850252000,-838.05,0.00041917,120]
[423102891,1779850252000,-500.0,0.00041917,30]
[423102886,1779850252000,-838.05,0.00041917,120]
[423102871,1779850252000,-500.0,0.00041917,120]
[423102892,1779850252000,-500.0,0.00041917,30]
[423102885,1779850252000,-838.05,0.00041917,120]
[423102887,1779850252000,-838.05,0.00041917,120]
[423102889,1779850252000,-500.0,0.00041917,30]
[423102890,1779850252000,-500.0,0.00041917,30]
[423102888,1779850252000,-838.05,0.00041917,120]
[423102895,1779850252000,-534.63359193,0.00041917,30]
[423102897,1779850252000,-500.0,0.00041917,2]
[423102893,1779850252000,-500.0,0.00041917,30]
[423102898,1779850252000,-500.0,0.00041917,2]
[423102854,1779850252000,-157.80409951,0.00041917,120]
[423102894,1779850252000,-500.0,0.00041917,30]
[423102883,1779850252000,-838.05,0.00041917,120]
[423102869,1779850252000,-500.0,0.00041917,120]
[423102896,1779850252000,-500.0,0.00041917,2]
[423102873,1779850252000,-500.0,0.00041917,120]
[423102878,1779850252000,-838.05,0.00041917,120]
[423102852,1779850252000,-156.77310043,0.00041917,120]
[423102845,1779850252000,-152.24554089,0.00041917,120]
[423102841,1779850252000,-192.48376554,0.00041917,90]
[423102846,1779850252000,-150.27118206,0.00041917,120]
[423102843,1779850252000,-159.50058091,0.00041917,120]
[423102848,1779850252000,-162.46555734,0.00041917,120]
[423102844,1779850252000,-160.79254387,0.00041917,120]
[423102849,1779850252000,-166.21604096,0.00041917,120]
[423102847,1779850252000,-163.13599785,0.00041917,120]
[423102857,1779850252000,-174.73438722,0.00041917,120]
[423102855,1779850252000,-168.00310568,0.00041917,120]
[423102858,1779850252000,-171.06970678,0.00041917,120]
[423102853,1779850252000,-153.18139693,0.00041917,120]
[423102861,1779850252000,-154.90508748,0.00041917,120]
[423102856,1779850252000,-159.66054146,0.00041917,120]
[423102868,1779850252000,-300.15272635,0.00041917,120]
[423102860,1779850252000,-167.11547204,0.00041917,120]
[423102862,1779850252000,-1742.99,0.00041917,120]
[423102867,1779850252000,-1742.99,0.00041917,120]
[423102870,1779850252000,-500.0,0.00041917,120]
[423102863,1779850252000,-1742.99,0.00041917,120]
[423102865,1779850252000,-1742.99,0.00041917,120]
[423102866,1779850252000,-1742.99,0.00041917,120]
[423102859,1779850252000,-156.59704062,0.00041917,120]
[423102864,1779850252000,-1742.99,0.00041917,120]
[423102876,1779850252000,-531.31218897,0.00041917,120]
[423102940,1779850253000,-500.0,0.00041999,120]
[423102925,1779850253000,-1742.99,0.00041999,120]
[423102922,1779850253000,-1742.99,0.00041999,120]
[423102919,1779850253000,-1742.99,0.00041999,120]
[423102926,1779850253000,-1742.99,0.00041999,120]
[423102921,1779850253000,-1742.99,0.00041999,120]
[423102941,1779850253000,-500.0,0.00041999,120]
[423102939,1779850253000,-500.0,0.00041999,120]
[423102937,1779850253000,-500.0,0.00041999,120]
[423102938,1779850253000,-500.0,0.00041999,120]
[423102931,1779850253000,-1742.99,0.00041999,120]
[423102932,1779850253000,-1742.99,0.00041999,120]
[423102942,1779850253000,-500.0,0.00041999,120]
[423102934,1779850253000,-500.0,0.00041999,120]
[423102920,1779850253000,-1742.99,0.00041999,120]
[423102935,1779850253000,-500.0,0.00041999,120]
[423102933,1779850253000,-1743.15808289,0.00041999,120]
[423102954,1779850253000,-838.05,0.00041999,120]
[423102945,1779850253000,-500.0,0.00041999,120]
[423102946,1779850253000,-554.50173981,0.00041999,120]
[423102952,1779850253000,-838.05,0.00041999,120]
[423102936,1779850253000,-500.0,0.00041999,120]
[423102928,1779850253000,-1742.99,0.00041999,120]
[423102912,1779850253000,-649.02,0.00041999,120]
[423102930,1779850253000,-1742.99,0.00041999,120]
[423102947,1779850253000,-838.05,0.00041999,120]
[423102899,1779850253000,-500.0,0.00041917,2]
[423102900,1779850253000,-198.4869394,0.00041917,2]
[423102902,1779850253000,-182.94483247,0.00041917,120]
[423102901,1779850253000,-522.36298406,0.00041917,120]
[423102906,1779850253000,-575.67806441,0.00041917,2]
[423102907,1779850253000,-2514.76172475,0.0004195,120]
[423102903,1779850253000,-321.39798364,0.00041917,120]
[423102904,1779850253000,-500.0,0.00041917,2]
[423102905,1779850253000,-500.0,0.00041917,2]
[423102929,1779850253000,-1742.99,0.00041999,120]
[423102913,1779850253000,-649.02,0.00041999,120]
[423102914,1779850253000,-649.02,0.00041999,120]
[423102918,1779850253000,-1742.99,0.00041999,120]
[423102911,1779850253000,-649.02,0.00041999,120]
[423102915,1779850253000,-649.2116005,0.00041999,120]
[423102908,1779850253000,-838.05,0.00041998,120]
[423102909,1779850253000,-1258.93,0.00041998,2]
[423102916,1779850253000,-1742.99,0.00041999,120]
[423102927,1779850253000,-1742.99,0.00041999,120]
[423102923,1779850253000,-1742.99,0.00041999,120]
[423102924,1779850253000,-1742.99,0.00041999,120]
[423102910,1779850253000,-649.02,0.00041999,120]
[423102917,1779850253000,-1742.99,0.00041999,120]
[423102943,1779850253000,-500.0,0.00041999,120]
[423102944,1779850253000,-500.0,0.00041999,120]
[423102972,1779850253000,-537.6845,0.00041999,61]
[423102984,1779850253000,-512.71911666,0.00041999,7]
[423102986,1779850253000,-484.21,0.00042,7]
[423102978,1779850253000,-500.0,0.00041999,7]
[423102980,1779850253000,-500.0,0.00041999,7]
[423102983,1779850253000,-500.0,0.00041999,7]
[423102982,1779850253000,-500.0,0.00041999,7]
[423102981,1779850253000,-500.0,0.00041999,7]
[423102987,1779850253000,-6593.68787081,0.00042,120]
[423102985,1779850253000,-10000.0,0.00042,14]
[423102971,1779850253000,-518.5,0.00041999,90]
[423102979,1779850253000,-500.0,0.00041999,7]
[423102997,1779850253000,-4273.18898932,0.00042,120]
[423102998,1779850253000,-1408.38733541,0.00042,120]
[423102994,1779850253000,-710.18580732,0.00042,120]
[423102990,1779850253000,-662.59219503,0.00042,120]
[423102992,1779850253000,-256.86646978,0.00042,120]
[423102993,1779850253000,-1112.24855823,0.00042,120]
[423102996,1779850253000,-1782.0,0.00042,90]
[423102989,1779850253000,-813.55339936,0.00042,120]
[423102995,1779850253000,-1557.09990449,0.00042,60]
[423102949,1779850253000,-838.05,0.00041999,120]
[423102991,1779850253000,-1132.29790245,0.00042,120]
[423102977,1779850253000,-500.0,0.00041999,7]
[423102988,1779850253000,-44600.0,0.00042,10]
[423102968,1779850253000,-802.09805056,0.00041999,120]
[423102951,1779850253000,-838.05,0.00041999,120]
[423102948,1779850253000,-838.05,0.00041999,120]
[423102974,1779850253000,-578.20924308,0.00041999,45]
[423102953,1779850253000,-838.05,0.00041999,120]
[423102959,1779850253000,-1258.93,0.00041999,2]
[423102964,1779850253000,-1258.93,0.00041999,2]
[423102956,1779850253000,-838.05,0.00041999,120]
[423102958,1779850253000,-1258.93,0.00041999,2]
[423102955,1779850253000,-838.05,0.00041999,120]
[423102961,1779850253000,-1258.93,0.00041999,2]
[423102957,1779850253000,-838.20359261,0.00041999,120]
[423102950,1779850253000,-838.05,0.00041999,120]
[423102962,1779850253000,-1258.93,0.00041999,2]
[423102963,1779850253000,-1258.93,0.00041999,2]
[423102966,1779850253000,-1258.93,0.00041999,2]
[423102975,1779850253000,-599.60298507,0.00041999,30]
[423102973,1779850253000,-557.5788265,0.00041999,60]
[423102967,1779850253000,-1258.95,0.00041999,2]
[423102969,1779850253000,-176.83679127,0.00041999,120]
[423102976,1779850253000,-500.0,0.00041999,7]
[423102960,1779850253000,-1258.93,0.00041999,2]
[423102965,1779850253000,-1258.93,0.00041999,2]
[423102970,1779850253000,-500.0,0.00041999,120]
[423103009,1779850254000,-2000.0,0.00042,120]
[423103013,1779850254000,-2365.275,0.00042,120]
[423103015,1779850254000,-1844.09,0.00042,120]
[423103014,1779850254000,-2511.0,0.00042,120]
[423103016,1779850254000,-166420.36368589,0.00042,120]
[423103011,1779850254000,-540.70106453,0.00042,120]
[423103010,1779850254000,-3592.54485592,0.00042,120]
[423103007,1779850254000,-166.30064268,0.00042,120]
[423103002,1779850254000,-8628.9,0.00042,30]
[423103001,1779850254000,-2000.0,0.00042,120]
[423103000,1779850254000,-500.0,0.00042,120]
[423103004,1779850254000,-4032.46757534,0.00042,120]
[423103005,1779850254000,-97774.02242417,0.00042,120]
[423103006,1779850254000,-151.59263232,0.00019997,2]
[423103003,1779850254000,-1749.25274811,0.00042,120]
[423102999,1779850254000,-976.74524051,0.00042,31]
[423103018,1779850254000,-1368.5600984,0.00042,120]
[423103008,1779850254000,-27059.67693315,0.00042,120]
[423103012,1779850254000,-935.68196012,0.00042,120]
[423103026,1779850254000,-113507.86663622,0.00042,120]
[423103025,1779850254000,-13819.83159226,0.000419,15]
[423103032,1779850254000,-151.0,0.00038356,30]
[423103035,1779850254000,-434.0,0.00038438,30]
[423103033,1779850254000,-151.0,0.00038356,30]
[423103036,1779850254000,-2169.82567638,0.00042,120]
[423103034,1779850254000,-215.43465159,0.00038356,30]
[423103031,1779850254000,-73.4149852,0.00035359,2]
[423103029,1779850254000,-216.41272776,0.00027153,3]
[423103027,1779850254000,-329.91,0.00042,120]
[423103030,1779850254000,-119.40657924,0.00035359,2]
[423103022,1779850254000,-186.97,0.00027552,30]
[423103024,1779850254000,-723.65677384,0.000419,15]
[423103023,1779850254000,-153.51,0.00029,7]
[423103019,1779850254000,-153.5,0.00024658,2]
[423103017,1779850254000,-477.045886,0.00020355,2]
[423103021,1779850254000,-54.16,0.00027551,2]
[423103020,1779850254000,-150.5,0.00027551,2]
[423103028,1779850254000,-527438.48780042,0.00042,120]
[423103037,1779850254000,-1558.86743648,0.00042,120]
[423103040,1779850348000,151.0,0.000101,2]
[423103041,1779850351000,151.0,0.000101,2]
[423103042,1779850355000,151.0,0.000101,2]
[423103074,1779850954000,291.3612025,0.00010134,2]
[423103076,1779851190000,-186.26520327,0.00010233,2]
[423103077,1779851276000,194.24080166,0.00010134,2]
[423103104,1779851432000,-438.22274962,0.00016394,2]
[423103101,1779851432000,-522.55394835,0.00014833,2]
[423103106,1779851432000,-159.78,0.00017144,2]
[423103105,1779851432000,-168.02,0.00016712,2]
[423103103,1779851432000,-2000.230511,0.00016,2]
[423103099,1779851432000,-524.3911013,0.00014833,2]
[423103102,1779851432000,-159.78,0.00015826,2]
[423103107,1779851432000,-849.22771465,0.00018069,2]
[423103112,1779851432000,-232.0,0.0002,2]
[423103119,1779851432000,-159.78,0.00023738,2]
[423103108,1779851432000,-133.77228535,0.00018069,2]
[423103110,1779851432000,-159.78,0.00018463,2]
[423103111,1779851432000,-159.78,0.00019782,2]
[423103098,1779851432000,-511.21496891,0.00014833,2]
[423103109,1779851432000,-194.24080165,0.00018313,2]
[423103097,1779851432000,-500.0,0.00014833,2]
[423103084,1779851432000,-500.0,0.00010234,2]
[423103095,1779851432000,-250.0,0.00013678,2]
[423103114,1779851432000,-159.78,0.00021101,2]
[423103080,1779851432000,-1450.04770829,0.0001022,2]
[423103081,1779851432000,-1240.92382394,0.0001022,2]
[423103082,1779851432000,-1200.0,0.00010233,2]
[423103083,1779851432000,-500.0,0.00010234,2]
[423103085,1779851432000,-500.0,0.00010234,2]
[423103086,1779851432000,-500.0,0.00010234,2]
[423103091,1779851432000,-256.39122923,0.00010234,2]
[423103089,1779851432000,-500.0,0.00010234,2]
[423103088,1779851432000,-500.0,0.00010234,2]
[423103090,1779851432000,-500.0,0.00010234,2]
[423103087,1779851432000,-500.0,0.00010234,2]
[423103093,1779851432000,-294.0,0.00011256,2]
[423103096,1779851432000,-159.78,0.00014507,2]
[423103094,1779851432000,-435.82561057,0.000135,2]
[423103092,1779851432000,-163.52,0.00010234,2]
[423103115,1779851432000,-217.14,0.00021893,2]
[423103100,1779851432000,-512.77428283,0.00014833,2]
[423103118,1779851432000,-2387.7438766,0.00023,20]
[423103151,1779851432000,-427.58,0.00027972,30]
[423103148,1779851432000,-232.0,0.000275,7]
[423103152,1779851432000,-200.0,0.0002801,2]
[423103146,1779851432000,-150.99,0.00027397,2]
[423103149,1779851432000,-150.0,0.00027521,2]
[423103147,1779851432000,-20006.72,0.00027397,2]
[423103150,1779851432000,-159.78,0.00027695,2]
[423103153,1779851432000,-200.0,0.0002801,2]
[423103155,1779851432000,-216.30029166,0.00028243,2]
[423103154,1779851432000,-151.1977421,0.0002801,2]
[423103156,1779851432000,-175.6,0.00028299,2]
[423103161,1779851432000,-208.97895572,0.00028553,2]
[423103158,1779851432000,-707.04,0.0002854,30]
[423103157,1779851432000,-742.24,0.00028539,30]
[423103116,1779851432000,-196.56334483,0.00022,3]
[423103145,1779851432000,-999.99,0.00027397,2]
[423103144,1779851432000,-3981.50138831,0.00027397,2]
[423103160,1779851432000,-215.46156935,0.00028553,2]
[423103136,1779851432000,-6018.48861169,0.00027397,2]
[423103134,1779851432000,-299.99,0.00027397,12]
[423103117,1779851432000,-159.78,0.0002242,2]
[423103121,1779851432000,-189.27,0.00024658,2]
[423103127,1779851432000,-150.0,0.00025951,2]
[423103123,1779851432000,-159.78,0.00025057,2]
[423103129,1779851432000,-500.0,0.00026,2]
[423103130,1779851432000,-159.78,0.00026376,2]
[423103120,1779851432000,-186.37,0.00024658,2]
[423103132,1779851432000,-232.0,0.000267,7]
[423103159,1779851432000,-160.0,0.00028553,2]
[423103125,1779851432000,-1392.9597772,0.0002589,2]
[423103135,1779851432000,-9999.99,0.00027397,2]
[423103133,1779851432000,-169.74,0.00027055,2]
[423103113,1779851432000,-6946.59848592,0.0002,7]
[423103131,1779851432000,-194.24080165,0.00026492,2]
[423103122,1779851432000,-187.23,0.00024658,2]
[423103124,1779851432000,-525.0,0.00025082,2]
[423103208,1779851433000,-1000.0,0.000297,7]
[423103193,1779851433000,-1000.0,0.00029397,2]
[423103200,1779851433000,-294.41571421,0.000295,2]
[423103196,1779851433000,-1330.81211534,0.000294,2]
[423103194,1779851433000,-1000.0,0.00029397,2]
[423103195,1779851433000,-1000.0,0.00029397,2]
[423103199,1779851433000,-427.58,0.00029427,2]
[423103201,1779851433000,-294.41571421,0.000295,2]
[423103203,1779851433000,-525.0,0.00029659,6]
[423103206,1779851433000,-926.3634052,0.000297,2]
[423103207,1779851433000,-655.13270289,0.000297,2]
[423103202,1779851433000,-294.41571421,0.000295,2]
[423103197,1779851433000,-926.3634052,0.000294,2]
[423103212,1779851433000,-742.24,0.00030034,7]
[423103210,1779851433000,-188.27,0.00029719,2]
[423103205,1779851433000,-1330.81211534,0.000297,2]
[423103215,1779851433000,-166.66,0.00030217,30]
[423103214,1779851433000,-427.58,0.00030154,30]
[423103209,1779851433000,-157.8239937,0.00029704,2]
[423103213,1779851433000,-707.04,0.00030035,7]
[423103211,1779851433000,-1330.81211534,0.0003,2]
[423103216,1779851433000,-1330.81211534,0.000303,2]
[423103218,1779851433000,-5000.0,0.0003046,2]
[423103217,1779851433000,-168.97,0.0003046,120]
[423103220,1779851433000,-315.6479874,0.0003059,2]
[423103198,1779851433000,-655.13270289,0.000294,2]
[423103204,1779851433000,-154.0,0.00029698,30]
[423103192,1779851433000,-1000.0,0.00029397,2]
[423103173,1779851433000,-198.54,0.00029,2]
[423103190,1779851433000,-2741.98,0.00029387,10]
[423103165,1779851433000,-427.58,0.00028699,7]
[423103162,1779851433000,-1330.81211534,0.000286,2]
[423103164,1779851433000,-655.13270289,0.000286,2]
[423103163,1779851433000,-926.3634052,0.000286,2]
[423103166,1779851433000,-1330.81211534,0.000288,2]
[423103168,1779851433000,-655.13270289,0.000288,2]
[423103167,1779851433000,-926.3634052,0.000288,2]
[423103169,1779851433000,-152.0,0.0002891,7]
[423103177,1779851433000,-255.95,0.00029,2]
[423103174,1779851433000,-198.55,0.00029,2]
[423103170,1779851433000,-255.95,0.00029,2]
[423103175,1779851433000,-255.95,0.00029,2]
[423103228,1779851433000,-166.71,0.0003094,2]
[423103191,1779851433000,-1000.0,0.00029397,2]
[423103171,1779851433000,-2500.0,0.00029,2]
[423103172,1779851433000,-198.54,0.00029,2]
[423103178,1779851433000,-255.94,0.00029,2]
[423103180,1779851433000,-526.25155808,0.00029,2]
[423103181,1779851433000,-316.75050505,0.00029,2]
[423103179,1779851433000,-255.94,0.00029,2]
[423103189,1779851433000,-3290.38,0.00029387,10]
[423103182,1779851433000,-159.78,0.00029014,2]
[423103183,1779851433000,-402.67,0.000291,2]
[423103185,1779851433000,-926.3634052,0.000291,2]
[423103184,1779851433000,-1330.81211534,0.000291,2]
[423103187,1779851433000,-166.66,0.00029193,30]
[423103188,1779851433000,-214.9776095,0.00029278,2]
[423103186,1779851433000,-655.13270289,0.000291,2]
[423103176,1779851433000,-255.95,0.00029,2]
[423103219,1779851433000,-200.0,0.0003046,2]
[423103238,1779851433000,-742.24,0.00031529,2]
[423103223,1779851433000,-162.0,0.00030698,30]
[423103265,1779851433000,-525.0,0.00034235,11]
[423103258,1779851433000,-1359.315,0.00033429,2]
[423103261,1779851433000,-1271.0,0.00033429,2]
[423103260,1779851433000,-521.0,0.00033429,2]
[423103255,1779851433000,-1500.0,0.000334,7]
[423103263,1779851433000,-427.58,0.00033792,2]
[423103262,1779851433000,-1000.0,0.0003352,2]
[423103264,1779851433000,-448.51514651,0.000339,120]
[423103259,1779851433000,-3547.0,0.00033429,2]
[423103266,1779851433000,-500.0,0.00034261,2]
[423103268,1779851433000,-500.0,0.00034261,2]
[423103270,1779851433000,-150.0,0.00034261,60]
[423103269,1779851433000,-501.31324626,0.00034261,2]
[423103267,1779851433000,-500.0,0.00034261,2]
[423103275,1779851433000,-150.0,0.00034261,60]
[423103271,1779851433000,-150.0,0.00034261,60]
[423103274,1779851433000,-500.0,0.00034261,60]
[423103277,1779851433000,-150.0,0.00034261,60]
[423103272,1779851433000,-242.77531095,0.00034261,60]
[423103276,1779851433000,-500.0,0.00034261,60]
[423103273,1779851433000,-150.0,0.00034261,60]
[423103278,1779851433000,-107.78712072,0.00034261,60]
[423103280,1779851433000,-150.0,0.00034261,60]
[423103282,1779851433000,-212.20520749,0.00034261,60]
[423103281,1779851433000,-500.0,0.00034261,60]
[423103279,1779851433000,-392.21287928,0.00034261,60]
[423103283,1779851433000,-95.99801398,0.00034261,60]
[423103221,1779851433000,-169.16446278,0.0003059,2]
[423103256,1779851433000,-529.36523566,0.0003342,2]
[423103257,1779851433000,-931.19,0.00033429,2]